Workbook

Sheet READ ME
D4: Language: | E4: English
A8: =Translation!B6 -> Design Tool: Solar Refrigerator
C18: =Translation!B7 -> Read Me Sheet
C20: =Translation!B8 -> Introduction
C22: =Translation!B9 -> This tool calculates the required power of a do-it-yourself refrigerator to cool different products from a given to a desired temperature and gives an economic analysis. Examplary data is filled and and can be modified by own data.
C28: =Translation!B10 -> Tips & Tricks
C30: =Translation!B11 -> ● Enter values into white (non-coloured) cells only! ● None entry cells (coloured cells) are protected. Unprotect first if changes are necessary
C37: =Translation!B12 -> Overview of the following sheets
C39: =Translation!B13 -> 1. Geographic Data | F39: =Translation!B19 -> For selecting basic site information: ambient temperatures or solar radiation.
C41: =Translation!B14 -> 2. Input | F41: =Translation!B20 -> For adding data about the product to be cooled under given conditions
C43: =Translation!B15 -> 3. Output | F43: =Translation!B21 -> For an overview of the results
C45: =Translation!B16 -> 4. Weather Data | F45: =Translation!B22 -> To add weather data for a specific location
C47: =Translation!B17 -> Calculation Sheet (Hidden) | F47: =Translation!B23 -> All calculations are done within this sheet
C49: =Translation!B18 -> Translation sheet (Hidden) | F49: =Translation!B24 -> Contains the translation into several languages
C52: =Translation!B25 -> Additional information
C54: =Translation!B26 -> This tool was created by the solar cooling group of the Institute of Agricultural Engineering ( Tropics/Subtropics Department) of the University of Hohenheim, Germany.
C59: =Translation!B27 -> In cooperation with

Sheet 1 Geographic Data
D3: =Translation!B28 -> 1. Geographic Data
A5: =Translation!B43 -> Choose location:
A6: Mali (Bamako)
B7: =Translation!B31 -> January | C7: =Translation!B32 -> February | D7: =Translation!B33 -> March | E7: =Translation!B34 -> April | F7: =Translation!B35 -> May | G7: =Translation!B36 -> June | H7: =Translation!B37 -> July | I7: =Translation!B38 -> August | J7: =Translation!B39 -> September | K7: =Translation!B40 -> October | L7: =Translation!B41 -> November | M7: =Translation!B42 -> December
A8: =Translation!B29 -> Mean daily temperature [°C]: | B8: ='4 Weather Data'!C6 -> 25.1 | C8: ='4 Weather Data'!D6 -> 27.8 | D8: ='4 Weather Data'!E6 -> 30.3 | E8: ='4 Weather Data'!F6 -> 31.1 | F8: ='4 Weather Data'!G6 -> 31.5 | G8: ='4 Weather Data'!H6 -> 29 | H8: ='4 Weather Data'!I6 -> 27.4 | I8: ='4 Weather Data'!J6 -> 25.9 | J8: ='4 Weather Data'!K6 -> 26.4 | K8: ='4 Weather Data'!L6 -> 27.4 | L8: ='4 Weather Data'!M6 -> 26.5 | M8: ='4 Weather Data'!N6 -> 24.8
A9: =Translation!B30 -> Solar irradiation [kWh/m² day]: | B9: ='4 Weather Data'!C7 -> 5.4 | C9: ='4 Weather Data'!D7 -> 5.9 | D9: ='4 Weather Data'!E7 -> 6.9 | E9: ='4 Weather Data'!F7 -> 6.6 | F9: ='4 Weather Data'!G7 -> 6.4 | G9: ='4 Weather Data'!H7 -> 6.1 | H9: ='4 Weather Data'!I7 -> 5.8 | I9: ='4 Weather Data'!J7 -> 5.6 | J9: ='4 Weather Data'!K7 -> 5.8 | K9: ='4 Weather Data'!L7 -> 5.8 | L9: ='4 Weather Data'!M7 -> 5.7 | M9: ='4 Weather Data'!N7 -> 5.4
A11: =Translation!B45 -> Use to obtain indicative monthly irradiation and temperature data for the site: | H11: www.worldclimate.com | J11: www.sdwebx.worldbank.org/climateportal
A13: =Translation!B44 -> Locations can be added on the sheet "Weather Data"

Sheet 2 Input
B3: =Translation!B46 -> Input of parameters
B6: =Translation!B47 -> Product information | E6: =Translation!B48 -> Data
B8: =Translation!B49 -> Total mass to be cooled | E8: =Translation!B52 -> Mass = | F8: 12 | G8: =Translation!B55 -> kg or l
B9: =Translation!B50 -> Moisture content of the product | E9: =Translation!B53 -> MC = | F9: 100 | G9: =Translation!B56 -> % wet based
B10: =Translation!B51 -> or Heat capacity of the product | E10: =Translation!B54 -> cp = | F10: 0 | G10: =Translation!B57 -> kJ/kg K
B13: =Translation!B58 -> Temperature information
B15: =Translation!B59 -> Initial temperature of the product | E15: Ti = | F15: 25 | G15: °C
B16: =Translation!B60 -> Final temperature of the product | E16: Tm = | F16: 4 | G16: °C
B17: =Translation!B61 -> Time to cool down the product | E17: t = | F17: 8 | G17: h
B18: =Translation!B62 -> How often do you cool down the product | F18: 30 | G18: =Translation!B63 -> per month
B21: =Translation!B64 -> System information
B23: =Translation!B65 -> Batteries | F23: Yes
B24: =Translation!B66 -> Autonomy of the system | F24: 3 | G24: =IF(K23="YES","days","") -> 
B25: =Translation!B67 -> System losses | F25: 30 | G25: %
B28: =Translation!B77 -> Isolation material
B30: =Translation!B78 -> Length of the refrigerator | E30: x = | F30: 0.5 | G30: m
B31: =Translation!B79 -> Width of the refrigerator | E31: y = | F31: 0.5 | G31: m | H31: 1 | I31: =Translation!B70 -> PV Panels | K31: 5 | L31: =Translation!B74 -> Compressor
B32: =Translation!B80 -> Height of the refrigerator | E32: z = | F32: 0.5 | G32: m | H32: 2 | I32: =Translation!B71 -> Charge Controller | K32: 6 | L32: =Translation!B75 -> Refrigerator
B33: =Translation!B81 -> Thermal conductivity of insulation | E33: k / l = | F33: 0.035 | G33: W/m K | H33: 3 | I33: =Translation!B72 -> Batteries | K33: 7 | L33: =Translation!B76 -> Evaporator plate
B34: =Translation!B82 -> Thickness of insulation | E34: L = | F34: 0.06 | G34: m | H34: 4 | I34: =Translation!B73 -> Control Unit
B37: =Translation!B83 -> Economic information
B39: =Translation!B84 -> Currency used for calculation | F39: €
B40: =Translation!B85 -> Specific cost of PV | F40: 1.1 | G40: =Translation!B99 -> €/Wp
B41: =Translation!B86 -> PV lifetime | F41: 21 | G41: =Translation!B93 -> years
B42: =Translation!B87 -> Specif cost of battery | F42: 2 | G42: =F39&"/Ah@12V" -> €/Ah@12V
B43: =Translation!B88 -> Battery lifetime | F43: 3 | G43: =Translation!B93 -> years
B44: =Translation!B89 -> Cost of solar cooling unit | F44: 650 | G44: =F39 -> €
B45: =Translation!B90 -> Solar cooling unit lifetime | F45: 12 | G45: =Translation!B93 -> years
B46: =Translation!B91 -> Material & construction costs for cooling box | F46: 250 | G46: =F39 -> €
B47: =Translation!B92 -> Maintenance costs per year | F47: 25 | G47: =Translation!B93 -> years
B49: =Translation!B94 -> Additional income per product unit | F49: 0.09 | G49: =Translation!B98 -> €/kg or l
B50: =Translation!B95 -> Additional income per month | F50: 0 | G50: =Translation!B100 -> €/month
B51: =Translation!B96 -> Discount rate | F51: 5 | G51: %
B52: =Translation!B97 -> Inflation | F52: 3 | G52: %

Sheet 3 Output
B3: =Translation!B101 -> Results
B6: =Translation!B102 -> System Design without batteries | H6: =Translation!B113 -> System Design with batteries
B8: =Translation!B103 -> Cooling units needed: | D8: ='Calculation Sheet'!P17 -> 1 | H8: =Translation!B103 -> Cooling units needed: | J8: ='Calculation Sheet'!P19 -> 1
B9: =Translation!B104 -> Cooling units costs: | D9: ='Calculation Sheet'!$U$74 -> 650 | E9: ='Calculation Sheet'!$E$69 -> € | H9: =Translation!B104 -> Cooling units costs: | J9: ='Calculation Sheet'!P74 -> 650 | K9: ='Calculation Sheet'!$E$69 -> €
B11: =Translation!B105 -> Solar PV size: | D11: ='Calculation Sheet'!$P$18 -> 186 | E11: Wp | H11: =Translation!B105 -> Solar PV size: | J11: ='Calculation Sheet'!P20 -> 97 | K11: Wp
B12: =Translation!B106 -> Solar PV costs: | D12: ='Calculation Sheet'!U70 -> 204.6 | E12: ='Calculation Sheet'!$E$69 -> € | H12: =Translation!B106 -> Solar PV costs: | J12: ='Calculation Sheet'!P70 -> 106.7 | K12: ='Calculation Sheet'!$E$69 -> €
H14: =Translation!B107 -> Battery size: | J14: ='Calculation Sheet'!P21 -> 156 | K14: Ah (12V)
H15: =Translation!B108 -> Battery costs: | J15: ='Calculation Sheet'!P72 -> 312 | K15: ='Calculation Sheet'!$E$69 -> €
B18: =Translation!B109 -> Total initial investment: | D18: ='Calculation Sheet'!B130 -> 1104.6 | E18: ='Calculation Sheet'!$E$69 -> € | H18: =Translation!B109 -> Total initial investment: | J18: ='Calculation Sheet'!B104 -> 1318.7 | K18: ='Calculation Sheet'!$E$69 -> €
B19: =Translation!B110 -> Payback period: | D19: ='Calculation Sheet'!B131 -> 3 | E19: =Translation!B114 -> years | H19: =Translation!B110 -> Payback period: | J19: ='Calculation Sheet'!B105 -> 4.6 | K19: =Translation!B114 -> years
B20: =Translation!B111 -> Net present value: | D20: ='Calculation Sheet'!B132 -> 2825.541735 | E20: ='Calculation Sheet'!$E$69 -> € | H20: =Translation!B111 -> Net present value: | J20: ='Calculation Sheet'!B106 -> 1074.295929 | K20: ='Calculation Sheet'!$E$69 -> €
B21: =Translation!B112 -> Internal rate of return: | D21: ='Calculation Sheet'!B133*100 -> 31.58752898 | E21: % | H21: =Translation!B112 -> Internal rate of return: | J21: ='Calculation Sheet'!B107*100 -> 16.25002157 | K21: %

Sheet Calculation Sheet
B3: January | C3: February | D3: March | E3: April | F3: May | G3: June | H3: July | I3: August | J3: September | K3: October | L3: November | M3: December
A4: Mean daily temperature [°C]: | B4: ='1 Geographic Data'!B8 -> 25.1 | C4: ='1 Geographic Data'!C8 -> 27.8 | D4: ='1 Geographic Data'!D8 -> 30.3 | E4: ='1 Geographic Data'!E8 -> 31.1 | F4: ='1 Geographic Data'!F8 -> 31.5 | G4: ='1 Geographic Data'!G8 -> 29 | H4: ='1 Geographic Data'!H8 -> 27.4 | I4: ='1 Geographic Data'!I8 -> 25.9 | J4: ='1 Geographic Data'!J8 -> 26.4 | K4: ='1 Geographic Data'!K8 -> 27.4 | L4: ='1 Geographic Data'!L8 -> 26.5 | M4: ='1 Geographic Data'!M8 -> 24.8
A5: Solar irradiation [kWh/m² day]: | B5: ='1 Geographic Data'!B9 -> 5.4 | C5: ='1 Geographic Data'!C9 -> 5.9 | D5: ='1 Geographic Data'!D9 -> 6.9 | E5: ='1 Geographic Data'!E9 -> 6.6 | F5: ='1 Geographic Data'!F9 -> 6.4 | G5: ='1 Geographic Data'!G9 -> 6.1 | H5: ='1 Geographic Data'!H9 -> 5.8 | I5: ='1 Geographic Data'!I9 -> 5.6 | J5: ='1 Geographic Data'!J9 -> 5.8 | K5: ='1 Geographic Data'!K9 -> 5.8 | L5: ='1 Geographic Data'!L9 -> 5.7 | M5: ='1 Geographic Data'!M9 -> 5.4
A6: Thermal losses for each day [kWh]: | B6: =$E$52*$E$55*(B4-$E$39)*24/1000 -> 0.4431 | C6: =$E$52*$E$55*(C4-$E$39)*24/1000 -> 0.4998 | D6: 0.5523 | E6: 0.5691 | F6: 0.5775 | G6: 0.525 | H6: 0.4914 | I6: 0.4599 | J6: 0.4704 | K6: 0.4914 | L6: 0.4725 | M6: 0.4368
A7: Thermal Energy Liquid phase [kWh]: | B7: =$E$27*$E$31*($E$38-MAX($E$39,0))/3600 -> 0.2933 | C7: =$E$27*$E$31*($E$38-MAX($E$39,0))/3600 -> 0.2933 | D7: 0.2933 | E7: 0.2933 | F7: 0.2933 | G7: 0.2933 | H7: 0.2933 | I7: 0.2933 | J7: 0.2933 | K7: 0.2933 | L7: 0.2933 | M7: 0.2933
A8: Thermal Energy Change Phase [kWh]: | B8: =$E$27*$E$31*80/3600 -> 1.117333333 | C8: =$E$27*$E$31*80/3600 -> 1.117333333 | D8: 1.117333333 | E8: 1.117333333 | F8: 1.117333333 | G8: 1.117333333 | H8: 1.117333333 | I8: 1.117333333 | J8: 1.117333333 | K8: 1.117333333 | L8: 1.117333333 | M8: 1.117333333
A9: Thermal Energy Ice Phase [kWh]: | B9: =0.5*$E$27*$E$31*(0-MIN($E$39,0))/3600 -> 0 | C9: =0.5*$E$27*$E$31*(0-MIN($E$39,0))/3600 -> 0 | D9: 0 | E9: 0 | F9: 0 | G9: 0 | H9: 0 | I9: 0 | J9: 0 | K9: 0 | L9: 0 | M9: 0
A10: Max Power to cool down the product [kW]: | B10: =B11/$E$32 -> 0.0366625 | C10: =C11/$E$32 -> 0.0366625 | D10: 0.0366625 | E10: 0.0366625 | F10: 0.0366625 | G10: 0.0366625 | H10: 0.0366625 | I10: 0.0366625 | J10: 0.0366625 | K10: 0.0366625 | L10: 0.0366625 | M10: 0.0366625
A11: Daily Energy to cool down the product [kWh]: | B11: =IF($E$39>0,B7,B7+B8+B9)*$E$33/30 -> 0.2933 | C11: =IF($E$39>0,C7,C7+C8+C9)*$E$33/30 -> 0.2933 | D11: 0.2933 | E11: 0.2933 | F11: 0.2933 | G11: 0.2933 | H11: 0.2933 | I11: 0.2933 | J11: 0.2933 | K11: 0.2933 | L11: 0.2933 | M11: 0.2933
A12: Qtotal for each day [kW]: | B12: =B6+B11 -> 0.7364 | C12: =C6+C11 -> 0.7931 | D12: 0.8456 | E12: 0.8624 | F12: 0.8708 | G12: 0.8183 | H12: 0.7847 | I12: 0.7532 | J12: 0.7637 | K12: 0.7847 | L12: 0.7658 | M12: 0.7301
A13: COP without battery: | B13: =$E$43*(1/((B4+5+273.15)/((MIN(-5,$E$42))+273.15)-1)) -> 1.909900285 | C13: =$E$43*(1/((C4+5+273.15)/((MIN(-5,$E$42))+273.15)-1)) -> 1.773478836 | D13: 1.663461538 | E13: 1.631082725 | F13: 1.615361446 | G13: 1.718910256 | H13: 1.792446524 | I13: 1.867339833 | J13: 1.84168956 | K13: 1.792446524 | L13: 1.836643836 | M13: 1.926364943
A14: COP with battery: | B14: =$E$43*(1/((B4+5+273.15)/($E$42+273.15)-1)) -> 2.187700965 | C14: =$E$43*(1/((C4+5+273.15)/($E$42+273.15)-1)) -> 2.012943787 | D14: 1.874311295 | E14: 1.833894879 | F14: 1.814333333 | G14: 1.943928571 | H14: 2.037050898 | I14: 2.132836991 | J14: 2.09992284 | K14: 2.037050898 | L14: 2.093461538 | M14: 2.20900974
A15: Energy needed without battery [kWhel]: | B15: =B12/B13 -> 0.3855698676 | C15: =C12/C13 -> 0.4472001492 | D15: 0.5083375723 | E15: 0.5287285475 | F15: 0.5390743987 | G15: 0.4760574305 | H15: 0.4377815402 | I15: 0.4033545404 | J15: 0.4146735782 | K15: 0.4377815402 | L15: 0.4169561812 | M15: 0.3790039903 | O15: Maximum values
A16: Engergy needed with battery [kWhel]: | B16: =B12/B14 -> 0.3366090759 | C16: =C12/C14 -> 0.3940000735 | D16: 0.4511523792 | E16: 0.4702559618 | F16: 0.4799559067 | G16: 0.4209516811 | H16: 0.3852137424 | I16: 0.3531446629 | J16: 0.3636800294 | K16: 0.3852137424 | L16: 0.3658056219 | M16: 0.3305100863 | P16: rounded
A17: Cooling units needed (no battery): | B17: =1000*B15/(70*8) -> 0.6885176207 | C17: =1000*C16/(70*8) -> 0.7035715598 | D17: 0.8056292486 | E17: 0.8397427889 | F17: 0.8570641191 | G17: 0.7516994305 | H17: 0.6878816829 | I17: 0.6306154694 | J17: 0.6494286239 | K17: 0.6878816829 | L17: 0.6532243248 | M17: 0.5901965828 | O17: =MAX(B17:M17) -> 0.8570641191 | P17: =MAX(1,IF( O17-ROUNDDOWN(O17,0)<0.2, ROUNDDOWN(O17,0), ROUNDUP(O17,0) )) -> 1
A18: PV without battery (Wp): | B18: =(1+$E$63/100)*1.7*1000*B15/B5 -> 157.7980384 | C18: =(1+$E$63/100)*1.7*1000*C15/C5 -> 167.5105644 | D18: 162.8153673 | E18: 177.043953 | F18: 186.1491283 | G18: 172.4732658 | H18: 166.8098627 | I18: 159.1809883 | J18: 158.0049324 | K18: 166.8098627 | L18: 161.661958 | M18: 155.1108923 | O18: =MAX(B18:M18) -> 186.1491283 | P18: =ROUND(O18,0) -> 186
A19: Cooling units needed (with battery): | B19: =1000*B16/(70*24) -> 0.2003625452 | C19: =1000*C16/(70*24) -> 0.2345238533 | D19: 0.2685430829 | E19: 0.279914263 | F19: 0.2856880397 | G19: 0.2505664768 | H19: 0.2292938943 | I19: 0.2102051565 | J19: 0.216476208 | K19: 0.2292938943 | L19: 0.2177414416 | M19: 0.1967321943 | O19: 0.2856880397 | P19: =MAX(1,IF( O19-ROUNDDOWN(O19,0)<0.2, ROUNDDOWN(O19,0), ROUNDUP(O19,0) )) -> 1
A20: PV with battery (Wp): | B20: =(1+$E$63/100)*1000*B16/B5 -> 81.03551827 | C20: =(1+$E$63/100)*1000*C16/C5 -> 86.81357551 | D20: 84.99972362 | E20: 92.62617429 | F20: 97.49104354 | G20: 89.711014 | H20: 86.34101123 | I20: 81.98001102 | J20: 81.51448935 | K20: 86.34101123 | L20: 83.42935236 | M20: 79.56724301 | O20: 97.49104354 | P20: 97
A21: Battery (Ah related to 12 V): | B21: =MAX($E$62,1)*(1+$E$63/100)*1000*B16/12 -> 109.3979497 | C21: =MAX($E$62,1)*(1+$E$63/100)*1000*C16/12 -> 128.0500239 | D21: 146.6245232 | E21: 152.8331876 | F21: 155.9856697 | G21: 136.8092963 | H21: 125.1944663 | I21: 114.7720154 | J21: 118.1960096 | K21: 125.1944663 | L21: 118.8868271 | M21: 107.4157781 | O21: 155.9856697 | P21: 156
A25: Product information
A27: ='2 Input'!B8 -> Total mass to be cooled | D27: Mass = | E27: ='2 Input'!F8 -> 12 | F27: kg or l
A28: ='2 Input'!B9 -> Moisture content of the product | D28: MC = | E28: ='2 Input'!F9 -> 100 | F28: %
A29: ='2 Input'!B10 -> or Heat capacity of the product | D29: cp = | E29: ='2 Input'!F10 -> 0 | F29: kJ/kg K
A30: Calculated heat capacity of the product: | D30: cp = | E30: =4.19-2.3*((100-E28)/100)-0.628*((100-E28)/100)^3 -> 4.19 | F30: kJ/kg K
A31: CP due to input of the user (either calculated via MC or direct) | D31: cp = | E31: =IF(E29>0,E29,E30) -> 4.19 | F31: kJ/kg K
A32: ='2 Input'!B17 -> Time to cool down the product | D32: t = | E32: ='2 Input'!F17 -> 8 | F32: h
A33: ='2 Input'!B18 -> How often do you cool down the product | E33: ='2 Input'!F18 -> 30
A36: Temperature information
A38: ='2 Input'!B15 -> Initial temperature of the product | D38: Ti = | E38: ='2 Input'!F15 -> 25 | F38: °C
A39: ='2 Input'!B16 -> Final temperature of the product | D39: Tm = | E39: ='2 Input'!F16 -> 4 | F39: °C
A41: Maximum Temperature within the year: | D41: Tyearmax = | E41: =MAX(B4:M4) -> 31.5 | F41: °C
A42: Temperature within the cooling device ( Final temp - 5°C): | D42: Tcold = | E42: =E39-5 -> -1 | F42: °C
A43: Alpha - value: | E43: 0.25
D44: COP worst case = | E44: =$E$43*(1/((E41+273.15)/($E$42+273.15)-1)) -> 2.093461538
A47: Isolation material
A49: Length of the refrigerator | D49: x = | E49: ='2 Input'!F30 -> 0.5 | F49: m
A50: Width of the refrigerator | D50: y = | E50: ='2 Input'!F31 -> 0.5 | F50: m
A51: Height of the refrigerator | D51: z = | E51: ='2 Input'!F32 -> 0.5 | F51: m
A52: Area of the refrigerator | D52: A = | E52: =2*(E49*E50+E50*E51+E49*E51) -> 1.5 | F52: m²
A53: ='2 Input'!B33 -> Thermal conductivity of insulation | D53: k / l = | E53: ='2 Input'!F33 -> 0.035 | F53: W/m K | O53: Batteries:
A54: ='2 Input'!B34 -> Thickness of insulation | D54: L = | E54: ='2 Input'!F34 -> 0.06 | F54: m | P54: Yes | Q54: =IF(H84="Yes",1,0) -> 1
D55: U = | E55: =E53/E54 -> 0.5833333333 | P55: No | Q55: =1-Q54 -> 0
A59: System information
A61: Batteries | E61: ='2 Input'!F23 -> Yes
A62: ='2 Input'!B24 -> Autonomy of the system | E62: ='2 Input'!F24 -> 3
A63: ='2 Input'!B25 -> System losses | E63: ='2 Input'!F25 -> 30 | F63: %
A67: Economic information | H67: Income | N67: System with Battery | S67: System without Battery
A69: ='2 Input'!B39 -> Currency used for calculation | E69: ='2 Input'!F39 -> €
A70: ='2 Input'!B40 -> Specific cost of PV | E70: ='2 Input'!F40 -> 1.1 | F70: =E69&"/Wp" -> €/Wp | H70: Additional income per product: | K70: =E78*E27*E33*12 -> 388.8 | L70: =E69&"/year" -> €/year | N70: Total PV Costs: | P70: =P20*E70 -> 106.7 | S70: Total PV Costs: | U70: =P18*E70 -> 204.6
A71: ='2 Input'!B41 -> PV lifetime | E71: ='2 Input'!F41 -> 21 | F71: years | H71: Additional income per year: | K71: =E79*12 -> 0 | L71: =E69&"/year" -> €/year | N71: Lifetime PV: | P71: =E71 -> 21 | S71: Lifetime PV: | U71: =E71 -> 21
A72: ='2 Input'!B42 -> Specif cost of battery | E72: ='2 Input'!F42 -> 2 | F72: =E69&"/Ah@12V" -> €/Ah@12V | H72: Total income : | K72: =SUM(K70:K71) -> 388.8 | L72: =E69&"/year" -> €/year | N72: Total Battery costs: | P72: =P21*E72 -> 312
A73: ='2 Input'!B43 -> Battery lifetime | E73: ='2 Input'!F43 -> 3 | F73: years | N73: Lifetime battery: | P73: =E73 -> 3
A74: ='2 Input'!B44 -> Cost of solar cooling unit | E74: ='2 Input'!F44 -> 650 | F74: =E69 -> € | N74: Total solar cooling unit costs: | P74: =P19*E74 -> 650 | S74: Total solar cooling unit costs: | U74: =P17*E74 -> 650
A75: ='2 Input'!B45 -> Solar cooling unit lifetime | E75: ='2 Input'!F45 -> 12 | F75: years | N75: Lifetime cooling unit: | P75: =E75 -> 12 | S75: Lifetime cooling unit: | U75: =E75 -> 12
A76: ='2 Input'!B46 -> Material & construction costs for cooling box | E76: ='2 Input'!F46 -> 250 | F76: =E69 -> € | N76: Material & construction: | P76: =E76 -> 250 | S76: Material & construction: | U76: =E76 -> 250
A77: ='2 Input'!B47 -> Maintenance costs per year | E77: ='2 Input'!F47 -> 25 | F77: =E69&"/year" -> €/year | N77: Maintenance per year: | P77: =E77 -> 25 | S77: Maintenance per year: | U77: =E77 -> 25
A78: ='2 Input'!B49 -> Additional income per product unit | E78: ='2 Input'!F49 -> 0.09 | F78: =E69&"/kg or l" -> €/kg or l
A79: ='2 Input'!B50 -> Additional income per month | E79: ='2 Input'!F50 -> 0 | F79: =E69&"/year" -> €/year
A80: ='2 Input'!B51 -> Discount rate | E80: ='2 Input'!F51 -> 5 | F80: %
A81: ='2 Input'!B52 -> Inflation | E81: ='2 Input'!F52 -> 3 | F81: %
B84: Economic Analysis: System with battery | F84: With batteries? | H84: =IF(OR('2 Input'!F23=Translation!E68,'2 Input'!F23=Translation!F68,'2 Input'!F23=Translation!G68),"Yes","No") -> Yes
D86: =IF(E102<0,0,1) -> 0 | E86: 0 | F86: 0 | G86: 1 | H86: 1 | I86: 1 | J86: 1 | K86: 1 | L86: 1 | M86: 1 | N86: 1 | O86: 1 | P86: 1 | Q86: 1 | R86: 1 | S86: 1 | T86: 1 | U86: 1 | V86: 1 | W86: 1 | X86: 1 | Y86: 1 | Z86: 1 | AA86: 1 | AB86: 1
B87: Year | C87: 0 | D87: 1 | E87: 2 | F87: 3 | G87: 4 | H87: 5 | I87: 6 | J87: 7 | K87: 8 | L87: 9 | M87: 10 | N87: 11 | O87: 12 | P87: 13 | Q87: 14 | R87: 15 | S87: 16 | T87: 17 | U87: 18 | V87: 19 | W87: 20 | X87: 21 | Y87: 22 | Z87: 23 | AA87: 24 | AB87: 25
A89: PV Costs | C89: =P70 -> 106.7 | D89: =IF(MOD(D87,$P$71)=0,$C$89*(1+($E$81/100))^D87,0) -> 0 | E89: 0 | F89: 0 | G89: 0 | H89: 0 | I89: 0 | J89: 0 | K89: 0 | L89: 0 | M89: 0 | N89: 0 | O89: 0 | P89: 0 | Q89: 0 | R89: 0 | S89: 0 | T89: 0 | U89: 0 | V89: 0 | W89: 0 | X89: 198.4934308 | Y89: 0 | Z89: 0 | AA89: 0 | AB89: 0
A90: Battery Costs | C90: =P72 -> 312 | D90: =IF(MOD(D87,$P$73)=0,$C$90*(1+($E$81/100))^D87,0) -> 0 | E90: 0 | F90: 340.930824 | G90: 0 | H90: 0 | I90: 372.5443165 | J90: 0 | K90: 0 | L90: 407.0892334 | M90: 0 | N90: 0 | O90: 444.8373967 | P90: 0 | Q90: 0 | R90: 486.085834 | S90: 0 | T90: 0 | U90: 531.1591151 | V90: 0 | W90: 0 | X90: 580.4119064 | Y90: 0 | Z90: 0 | AA90: 634.2317612 | AB90: 0
A91: Solar cooling units cost | C91: =P74 -> 650 | D91: =IF(MOD(D87,$P$75)=0,$C$91*(1+($E$81/100))^D87,0) -> 0 | E91: 0 | F91: 0 | G91: 0 | H91: 0 | I91: 0 | J91: 0 | K91: 0 | L91: 0 | M91: 0 | N91: 0 | O91: 926.7445765 | P91: 0 | Q91: 0 | R91: 0 | S91: 0 | T91: 0 | U91: 0 | V91: 0 | W91: 0 | X91: 0 | Y91: 0 | Z91: 0 | AA91: 1321.316169 | AB91: 0
A92: Material & Construction | C92: =P76 -> 250 | D92: 0 | E92: 0 | F92: 0 | G92: 0 | H92: 0 | I92: 0 | J92: 0 | K92: 0 | L92: 0 | M92: 0 | N92: 0 | O92: 0 | P92: 0 | Q92: 0 | R92: 0 | S92: 0 | T92: 0 | U92: 0 | V92: 0 | W92: 0 | X92: 0 | Y92: 0 | Z92: 0 | AA92: 0 | AB92: 0
A93: Maintenance costs | C93: 0 | D93: =P77 -> 25 | E93: =$D$93*(1+($E$81/100))^(E87-1) -> 25.75 | F93: =$D$93*(1+($E$81/100))^(F87-1) -> 26.5225 | G93: 27.318175 | H93: 28.13772025 | I93: 28.98185186 | J93: 29.85130741 | K93: 30.74684664 | L93: 31.66925203 | M93: 32.6193296 | N93: 33.59790948 | O93: 34.60584677 | P93: 35.64402217 | Q93: 36.71334284 | R93: 37.81474312 | S93: 38.94918542 | T93: 40.11766098 | U93: 41.32119081 | V93: 42.56082653 | W93: 43.83765133 | X93: 45.15278087 | Y93: 46.50736429 | Z93: 47.90258522 | AA93: 49.33966278 | AB93: 50.81985266
A95: Expenses per year: | C95: =SUM(C89:C94) -> 1318.7 | D95: =SUM(D89:D94) -> 25 | E95: 25.75 | F95: 367.453324 | G95: 27.318175 | H95: 28.13772025 | I95: 401.5261684 | J95: 29.85130741 | K95: 30.74684664 | L95: 438.7584854 | M95: 32.6193296 | N95: 33.59790948 | O95: 1406.18782 | P95: 35.64402217 | Q95: 36.71334284 | R95: 523.9005771 | S95: 38.94918542 | T95: 40.11766098 | U95: 572.4803059 | V95: 42.56082653 | W95: 43.83765133 | X95: 824.058118 | Y95: 46.50736429 | Z95: 47.90258522 | AA95: 2004.887593 | AB95: 50.81985266
A96: Expenses per year accumulated: | C96: =C95 -> 1318.7 | D96: =SUM($C$95:D95) -> 1343.7 | E96: =SUM($C$95:E95) -> 1369.45 | F96: =SUM($C$95:F95) -> 1736.903324 | G96: =SUM($C$95:G95) -> 1764.221499 | H96: =SUM($C$95:H95) -> 1792.359219 | I96: =SUM($C$95:I95) -> 2193.885388 | J96: =SUM($C$95:J95) -> 2223.736695 | K96: =SUM($C$95:K95) -> 2254.483542 | L96: =SUM($C$95:L95) -> 2693.242027 | M96: =SUM($C$95:M95) -> 2725.861357 | N96: =SUM($C$95:N95) -> 2759.459266 | O96: =SUM($C$95:O95) -> 4165.647086 | P96: =SUM($C$95:P95) -> 4201.291108 | Q96: =SUM($C$95:Q95) -> 4238.004451 | R96: =SUM($C$95:R95) -> 4761.905028 | S96: =SUM($C$95:S95) -> 4800.854214 | T96: =SUM($C$95:T95) -> 4840.971875 | U96: =SUM($C$95:U95) -> 5413.45218 | V96: =SUM($C$95:V95) -> 5456.013007 | W96: =SUM($C$95:W95) -> 5499.850658 | X96: =SUM($C$95:X95) -> 6323.908776 | Y96: =SUM($C$95:Y95) -> 6370.416141 | Z96: =SUM($C$95:Z95) -> 6418.318726 | AA96: =SUM($C$95:AA95) -> 8423.206319 | AB96: =SUM($C$95:AB95) -> 8474.026172
A97: Expenses per year accumulated (for hiding in the diagramm): | C97: =IF($H$84="YES",C96,NA()) -> 1318.7 | D97: =IF($H$84="YES",D96,NA()) -> 1343.7 | E97: 1369.45 | F97: 1736.903324 | G97: 1764.221499 | H97: 1792.359219 | I97: 2193.885388 | J97: 2223.736695 | K97: 2254.483542 | L97: 2693.242027 | M97: 2725.861357 | N97: 2759.459266 | O97: 4165.647086 | P97: 4201.291108 | Q97: 4238.004451 | R97: 4761.905028 | S97: 4800.854214 | T97: 4840.971875 | U97: 5413.45218 | V97: 5456.013007 | W97: 5499.850658 | X97: 6323.908776 | Y97: 6370.416141 | Z97: 6418.318726 | AA97: 8423.206319 | AB97: 8474.026172
A99: Accumulated income per year: | C99: 0 | D99: =K72 -> 388.8 | E99: =$K$72+D99 -> 777.6 | F99: =$K$72+E99 -> 1166.4 | G99: 1555.2 | H99: 1944 | I99: 2332.8 | J99: 2721.6 | K99: 3110.4 | L99: 3499.2 | M99: 3888 | N99: 4276.8 | O99: 4665.6 | P99: 5054.4 | Q99: 5443.2 | R99: 5832 | S99: 6220.8 | T99: 6609.6 | U99: 6998.4 | V99: 7387.2 | W99: 7776 | X99: 8164.8 | Y99: 8553.6 | Z99: 8942.4 | AA99: 9331.2 | AB99: 9720
A100: Income per year: | D100: =$K$72 -> 388.8 | E100: =$K$72 -> 388.8 | F100: 388.8 | G100: 388.8 | H100: 388.8 | I100: 388.8 | J100: 388.8 | K100: 388.8 | L100: 388.8 | M100: 388.8 | N100: 388.8 | O100: 388.8 | P100: 388.8 | Q100: 388.8 | R100: 388.8 | S100: 388.8 | T100: 388.8 | U100: 388.8 | V100: 388.8 | W100: 388.8 | X100: 388.8 | Y100: 388.8 | Z100: 388.8 | AA100: 388.8 | AB100: 388.8
A101: Cashfow per year: | C101: =C99-C96 -> -1318.7 | D101: =D100-D95 -> 363.8 | E101: 363.05 | F101: 21.346676 | G101: 361.481825 | H101: 360.6622798 | I101: -12.72616837 | J101: 358.9486926 | K101: 358.0531534 | L101: -49.95848539 | M101: 356.1806704 | N101: 355.2020905 | O101: -1017.38782 | P101: 353.1559778 | Q101: 352.0866572 | R101: -135.1005771 | S101: 349.8508146 | T101: 348.682339 | U101: -183.6803059 | V101: 346.2391735 | W101: 344.9623487 | X101: -435.258118 | Y101: 342.2926357 | Z101: 340.8974148 | AA101: -1616.087593 | AB101: 337.9801473
A102: Accumulated cashflow per year (for payback calculation) | C102: =C101 -> -1318.7 | D102: =C102+D101 -> -954.9 | E102: =D102+E101 -> -591.85 | F102: -570.503324 | G102: -209.021499 | H102: 151.6407808 | I102: 138.9146124 | J102: 497.863305 | K102: 855.9164583 | L102: 805.9579729 | M102: 1162.138643 | N102: 1517.340734 | O102: 499.9529139 | P102: 853.1088918 | Q102: 1205.195549 | R102: 1070.094972 | S102: 1419.945786 | T102: =S102+T101 -> 1768.628125 | U102: =T102+U101 -> 1584.94782 | V102: =U102+V101 -> 1931.186993 | W102: =V102+W101 -> 2276.149342 | X102: =W102+X101 -> 1840.891224 | Y102: =X102+Y101 -> 2183.183859 | Z102: =Y102+Z101 -> 2524.081274 | AA102: =Z102+AA101 -> 907.9936809 | AB102: =AA102+AB101 -> 1245.973828
C103: =C87+ABS(C102)/(ABS(C102)+ABS(D102)) -> 0.580005278 | D103: 1.617358979 | E103: 2.509182525 | F103: 3.731860368 | G103: 4.579549098 | H103: 5.521899728 | I103: 6.218152371 | J103: 7.367757975 | K103: 8.515030764 | L103: 9.409511386 | M103: 10.43371808 | N103: 11.75216652 | O103: 12.36949747 | P103: 13.41447168 | Q103: 14.52968864 | R103: 15.42974998 | S103: 16.44532315 | T103: 17.52738574 | U103: 18.45076424 | V103: 19.45900466 | W103: 20.55286056 | X103: 21.4574694 | Y103: 22.46379029 | Z103: 23.73543885 | AA103: 24.42154474 | AB103: 26
A104: Total initial investment costs: | B104: =SUM(C89:C93) -> 1318.7 | C104: =E69 -> €
A105: Payback period: | B105: =ROUND(IF(W102<0,25,HLOOKUP(1,D86:AB103,18,FALSE)),1) -> 4.6 | C105: years
A106: Net Present Value: | B106: =C101+NPV((E80/100),D101:W101) -> 1074.295929 | C106: =E69 -> €
A107: Internal Rate of Return: | B107: =IRR(C101:W101) -> 0.1625002157
B112: Economic Analysis: System without battery
D114: =IF(E128<0,0,1) -> 0 | E114: =IF(F128<0,0,1) -> 0 | F114: 1 | G114: 1 | H114: 1 | I114: 1 | J114: 1 | K114: 1 | L114: 1 | M114: 1 | N114: 1 | O114: 1 | P114: 1 | Q114: 1 | R114: 1 | S114: 1 | T114: 1 | U114: 1 | V114: 1 | W114: 1 | X114: 1 | Y114: 1 | Z114: 1 | AA114: 1 | AB114: 1
B115: Year | C115: 0 | D115: 1 | E115: 2 | F115: 3 | G115: 4 | H115: 5 | I115: 6 | J115: 7 | K115: 8 | L115: 9 | M115: 10 | N115: 11 | O115: 12 | P115: 13 | Q115: 14 | R115: 15 | S115: 16 | T115: 17 | U115: 18 | V115: 19 | W115: 20 | X115: 21 | Y115: 22 | Z115: 23 | AA115: 24 | AB115: 25
AE116: Titles for the diagramm:
A117: PV Costs | C117: =U70 -> 204.6 | D117: =IF(MOD(D115,$U$71)=0,$C$117*(1+($E$81/100))^D115,0) -> 0 | E117: 0 | F117: 0 | G117: 0 | H117: 0 | I117: 0 | J117: 0 | K117: 0 | L117: 0 | M117: 0 | N117: 0 | O117: 0 | P117: 0 | Q117: 0 | R117: 0 | S117: 0 | T117: 0 | U117: 0 | V117: 0 | W117: 0 | X117: 380.6162694 | Y117: 0 | Z117: 0 | AA117: 0 | AB117: 0
A118: Solar cooling units cost | C118: =U74 -> 650 | D118: =IF(MOD(D115,$U$75)=0,$C$118*(1+($E$81/100))^D115,0) -> 0 | E118: 0 | F118: 0 | G118: 0 | H118: 0 | I118: 0 | J118: 0 | K118: 0 | L118: 0 | M118: 0 | N118: 0 | O118: 926.7445765 | P118: 0 | Q118: 0 | R118: 0 | S118: 0 | T118: 0 | U118: 0 | V118: 0 | W118: 0 | X118: 0 | Y118: 0 | Z118: 0 | AA118: 1321.316169 | AB118: 0 | AE118: =Translation!B117 -> Accumulated income
A119: Material & Construction | C119: =U76 -> 250 | D119: 0 | E119: 0 | F119: 0 | G119: 0 | H119: 0 | I119: 0 | J119: 0 | K119: 0 | L119: 0 | M119: 0 | N119: 0 | O119: 0 | P119: 0 | Q119: 0 | R119: 0 | S119: 0 | T119: 0 | U119: 0 | V119: 0 | W119: 0 | X119: 0 | Y119: 0 | Z119: 0 | AA119: 0 | AB119: 0 | AE119: =IF(H84="Yes",Translation!B119,"") -> Accumulated system costs with batteries
A120: Maintenance costs | C120: 0 | D120: =U77 -> 25 | E120: =$D$120*(1+($E$81/100))^(E115-1) -> 25.75 | F120: 26.5225 | G120: 27.318175 | H120: 28.13772025 | I120: 28.98185186 | J120: 29.85130741 | K120: 30.74684664 | L120: 31.66925203 | M120: 32.6193296 | N120: 33.59790948 | O120: 34.60584677 | P120: 35.64402217 | Q120: 36.71334284 | R120: 37.81474312 | S120: 38.94918542 | T120: 40.11766098 | U120: 41.32119081 | V120: 42.56082653 | W120: 43.83765133 | X120: 45.15278087 | Y120: 46.50736429 | Z120: 47.90258522 | AA120: 49.33966278 | AB120: 50.81985266 | AE120: =Translation!B118 -> Accumulated system costs without batteries
A122: Expenses per year: | C122: =SUM(C117:C121) -> 1104.6 | D122: 25 | E122: 25.75 | F122: 26.5225 | G122: 27.318175 | H122: 28.13772025 | I122: 28.98185186 | J122: 29.85130741 | K122: 30.74684664 | L122: 31.66925203 | M122: 32.6193296 | N122: 33.59790948 | O122: 961.3504232 | P122: 35.64402217 | Q122: 36.71334284 | R122: 37.81474312 | S122: 38.94918542 | T122: 40.11766098 | U122: 41.32119081 | V122: 42.56082653 | W122: 43.83765133 | X122: 425.7690502 | Y122: 46.50736429 | Z122: 47.90258522 | AA122: 1370.655832 | AB122: 50.81985266
A123: Expenses per year accumulated: | C123: =C122 -> 1104.6 | D123: =SUM($C$122:D122) -> 1129.6 | E123: =SUM($C$122:E122) -> 1155.35 | F123: =SUM($C$122:F122) -> 1181.8725 | G123: =SUM($C$122:G122) -> 1209.190675 | H123: =SUM($C$122:H122) -> 1237.328395 | I123: =SUM($C$122:I122) -> 1266.310247 | J123: =SUM($C$122:J122) -> 1296.161555 | K123: =SUM($C$122:K122) -> 1326.908401 | L123: =SUM($C$122:L122) -> 1358.577653 | M123: =SUM($C$122:M122) -> 1391.196983 | N123: =SUM($C$122:N122) -> 1424.794892 | O123: =SUM($C$122:O122) -> 2386.145315 | P123: =SUM($C$122:P122) -> 2421.789338 | Q123: =SUM($C$122:Q122) -> 2458.50268 | R123: =SUM($C$122:R122) -> 2496.317424 | S123: =SUM($C$122:S122) -> 2535.266609 | T123: =SUM($C$122:T122) -> 2575.38427 | U123: =SUM($C$122:U122) -> 2616.705461 | V123: =SUM($C$122:V122) -> 2659.266287 | W123: =SUM($C$122:W122) -> 2703.103939 | X123: =SUM($C$122:X122) -> 3128.872989 | Y123: =SUM($C$122:Y122) -> 3175.380353 | Z123: =SUM($C$122:Z122) -> 3223.282938 | AA123: =SUM($C$122:AA122) -> 4593.93877 | AB123: =SUM($C$122:AB122) -> 4644.758623
A125: Accumulated investment per year: | C125: 0 | D125: =K72 -> 388.8 | E125: =$K$72+D125 -> 777.6 | F125: =$K$72+E125 -> 1166.4 | G125: 1555.2 | H125: 1944 | I125: 2332.8 | J125: 2721.6 | K125: 3110.4 | L125: 3499.2 | M125: 3888 | N125: 4276.8 | O125: 4665.6 | P125: 5054.4 | Q125: 5443.2 | R125: 5832 | S125: 6220.8 | T125: 6609.6 | U125: 6998.4 | V125: 7387.2 | W125: 7776 | X125: 8164.8 | Y125: 8553.6 | Z125: 8942.4 | AA125: 9331.2 | AB125: 9720
A126: Income per year: | D126: =$K$72 -> 388.8 | E126: =$K$72 -> 388.8 | F126: 388.8 | G126: 388.8 | H126: 388.8 | I126: 388.8 | J126: 388.8 | K126: 388.8 | L126: 388.8 | M126: 388.8 | N126: 388.8 | O126: 388.8 | P126: 388.8 | Q126: 388.8 | R126: 388.8 | S126: 388.8 | T126: 388.8 | U126: 388.8 | V126: 388.8 | W126: 388.8 | X126: 388.8 | Y126: 388.8 | Z126: 388.8 | AA126: 388.8 | AB126: 388.8
A127: Cashfow per year: | C127: =C125-C123 -> -1104.6 | D127: =D126-D122 -> 363.8 | E127: =E126-E122 -> 363.05 | F127: 362.2775 | G127: 361.481825 | H127: 360.6622798 | I127: 359.8181481 | J127: 358.9486926 | K127: 358.0531534 | L127: 357.130748 | M127: 356.1806704 | N127: 355.2020905 | O127: -572.5504232 | P127: 353.1559778 | Q127: 352.0866572 | R127: 350.9852569 | S127: 349.8508146 | T127: 348.682339 | U127: 347.4788092 | V127: 346.2391735 | W127: 344.9623487 | X127: -36.96905024 | Y127: 342.2926357 | Z127: 340.8974148 | AA127: -981.855832 | AB127: 337.9801473
A128: Accumulated cashflow per year (for payback calculation) | C128: =C127 -> -1104.6 | D128: =C128+D127 -> -740.8 | E128: =D128+E127 -> -377.75 | F128: -15.4725 | G128: 346.009325 | H128: 706.6716048 | I128: 1066.489753 | J128: 1425.438445 | K128: 1783.491599 | L128: 2140.622347 | M128: 2496.803017 | N128: 2852.005108 | O128: 2279.454685 | P128: 2632.610662 | Q128: 2984.69732 | R128: 3335.682576 | S128: 3685.533391 | T128: 4034.21573 | U128: 4381.694539 | V128: 4727.933713 | W128: 5072.896061 | X128: 5035.927011 | Y128: 5378.219647 | Z128: 5719.117062 | AA128: 4737.26123 | AB128: 5075.241377
D129: =D115+ABS(D128)/(ABS(D128)+ABS(E128)) -> 1.662285995 | E129: =E115+ABS(E128)/(ABS(E128)+ABS(F128)) -> 2.960652048 | F129: 3.042802982 | G129: 4.328693449 | H129: 5.398537675 | I129: 6.427977722 | J129: 7.444209885 | K129: 8.454495365 | L129: 9.461597153 | M129: 10.46679615 | N129: 11.55578826 | O129: 12.46405219 | P129: 13.46866055 | Q129: 14.47223385 | R129: 15.47508617 | S129: 16.47741621 | T129: 17.47935584 | U129: 18.48099598 | V129: 19.48240137 | W129: 20.50182855 | X129: 21.48356598 | Y129: 22.48464058 | Z129: 23.54695009 | AA129: 24.48277809 | AB129: 26
A130: Total initial investment costs: | B130: =SUM(C117:C121) -> 1104.6 | C130: =E69 -> €
A131: Payback period: | B131: =ROUND(IF(W128<0,25,HLOOKUP(1,D114:AB129,16,FALSE)),1) -> 3 | C131: years
A132: Net Present Value: | B132: =C127+NPV((E80/100),D127:W127) -> 2825.541735 | C132: =E69 -> €
A133: Internal Rate of Return: | B133: =IRR(C127:W127) -> 0.3158752898

Sheet Translation
B2: Selected language: | C2: ='READ ME'!E4 -> English
B3: Number: | C3: =MATCH(C2,E5:H5,0) -> 1
E4: 1 | F4: 2 | G4: 3 | H4: 4
B5: Appearence in the tool | E5: English | F5: Français | G5: Español | H5: Deutsch
B6: =INDEX(E6:H6,$C$3) -> Design Tool: Solar Refrigerator | C6: Read me | E6: Design Tool: Solar Refrigerator | F6: Outil de conception: Réfrigerateur Solaire | G6: Herramienta de Disenyo: Refrigerador Solar
B7: =INDEX(E7:H7,$C$3) -> Read Me Sheet | E7: Read Me Sheet | F7: Lisez-moi | G7: Leame
B8: Introduction | E8: Introduction | F8: Introduction | G8: Introdución
B9: This tool calculates the required power of a do-it-yourself refrigerator to cool different products from a given to a desired temperature and gives an economic analysis. Examplary data is filled and and can be modified by own data. | E9: This tool calculates the required power of a do-it-yourself refrigerator to cool different products from a given to a desired temperature and gives an economic analysis. Examplary data is filled and and can be modified by own data. | F9: Cet outil calcule la puissance requise d'un réfrigérateur de bricolage pour refroidir différents produits d'une température donnée à une température souhaitée et fournit une analyse économique. Des données d'exemple sont remplies et peuvent être modifiées par vos propres données. | G9: Esta Herramienta calcula el sistema solar (con o sin baterias) requerido para un refrigerador
B10: Tips & Tricks | E10: Tips & Tricks | F10: Conseils et astuces | G10: Consejos
B11: ● Enter values into white (non-coloured) cells only! ● None entry cells (coloured cells) are protected. Unprotect first if changes are necessary | E11: ● Enter values into white (non-coloured) cells only! ● None entry cells (coloured cells) are protected. Unprotect first if changes are necessary | F11: ● Saisissez des valeurs uniquement dans les cellules blanches (non colorées)! ● Les cellules qui ne doivent pas être remplies(cellules de couleur) sont protégées. | G11: Inserte los valores unicamente en las celdas de color blanco
B12: Overview of the following sheets | E12: Overview of the following sheets | F12: Aperçu des feuilles | G12: Resumen de las tablas
B13: 1. Geographic Data | E13: 1. Geographic Data | F13: 1. Geographic Data | G13: 1. Geographic Data
B14: 2. Input | E14: 2. Input | F14: 2. Input | G14: 2. Input
B15: 3. Output | E15: 3. Output | F15: 3. Output | G15: 3. Output
B16: 4. Weather Data | E16: 4. Weather Data | F16: 4. Weather Data | G16: 4. Weather Data
B17: Calculation Sheet (Hidden) | E17: Calculation Sheet (Hidden) | F17: Feuille de calcul (caché) | G17: Hoja de cálculo (no visible)
B18: Translation sheet (Hidden) | E18: Translation sheet (Hidden) | F18: Feuille de traduction (caché) | G18: Hoja de tradución (no visible)
B19: For selecting basic site information: ambient temperatures or solar radiation. | E19: For selecting basic site information: ambient temperatures or solar radiation. | F19: Pour choisir des informations de base sur le site: températures ambiantes ou rayonnement solaire. | G19: Selection de datos climaticos: Temperatura ambiente y radiación solar
B20: For adding data about the product to be cooled under given conditions | E20: For adding data about the product to be cooled under given conditions | F20: Pour ajouter des données sur le produit à refroidir dans des conditions données | G20: Datos acerca del producto a ser refrigerado ( carga térmica)
B21: For an overview of the results | E21: For an overview of the results | F21: Pour un aperçu des résultats | G21: Resumen de los resultados
B22: To add weather data for a specific location | E22: To add weather data for a specific location | F22: Pour ajouter des données météorologiques pour un endroit spécifique | G22: Para añadir datos meteorológicos para una ubicación específica
B23: All calculations are done within this sheet | E23: All calculations are done within this sheet | F23: Tous les calculs sont effectués dans cette feuille | G23: Todos los cálculos están hechos en esta tabla
B24: Contains the translation into several languages | E24: Contains the translation into several languages | F24: Contient la traduction en plusieurs langues | G24: Contiene la tradución a distintos idiomas
B25: Additional information | E25: Additional information | F25: Informatios supplémentaires | G25: Información adicional
B26: This tool was created by the solar cooling group of the Institute of Agricultural Engineering ( Tropics/Subtropics Department) of the University of Hohenheim, Germany. | E26: This tool was created by the solar cooling group of the Institute of Agricultural Engineering ( Tropics/Subtropics Department) of the University of Hohenheim, Germany. | F26: Cet outil a été créé par le groupe de refroidissement solaire de l’Institut d'Ingénierie Agricole (Département tropiques / subtropiques) de l’Université de Hohenheim, en Allemagne. | G26: Esta Herramienta ha sido creada por el grupo de refrigeración solar del Instituto de Ingeniería Agrónoma de la Universidad de Hohenheim en Alemania.
B27: In cooperation with | E27: In cooperation with | F27: En coopération avec | G27: En cooperación con:
B28: 1. Geographic Data | C28: 1 Geographic Data | E28: 1. Geographic Data | F28: 1. Données géographiques | G28: 1. Datos Climáticos
B29: Mean daily temperature [°C]: | E29: Mean daily temperature [°C]: | F29: Temperature quotidienne moyenne [°C] | G29: Temperatura media diaria [°C]
B30: Solar irradiation [kWh/m² day]: | E30: Solar irradiation [kWh/m² day]: | F30: Irradiation solaire [kWh/m² jour] | G30: Irradiación solar [kWh/m² dia]:
B31: January | E31: January | F31: Janvier | G31: Enero
B32: February | E32: February | F32: Février | G32: Febrero
B33: March | E33: March | F33: Mars | G33: Marzo
B34: April | E34: April | F34: Avril | G34: Abril
B35: May | E35: May | F35: Mai | G35: Mayo
B36: June | E36: June | F36: Juin | G36: Junio
B37: July | E37: July | F37: Juillet | G37: Julio
B38: August | E38: August | F38: Août | G38: Agosto
B39: September | E39: September | F39: Septembre | G39: Septiembre
B40: October | E40: October | F40: Octobre | G40: Octubre
B41: November | E41: November | F41: Novembre | G41: Noviembre
B42: December | E42: December | F42: Décembre | G42: Diciembre
B43: Choose location: | E43: Choose location: | F43: Selectionner localisation: | G43: Selectionar ubicación:
B44: Locations can be added on the sheet "Weather Data" | E44: Locations can be added on the sheet "Weather Data" | F44: Des localisations peuvent être ajoutées sur la feuille "Weather Data" | G44: Las ubicaciones pueden ser añadidas en la hoja "Weather Data".
B45: Use to obtain indicative monthly irradiation and temperature data for the site: | E45: Use to obtain indicative monthly irradiation and temperature data for the site: | F45: À utiliser pour obtenir des données indicatives mensuelles sur l’irradiation et la température du site: | G45: Usar para obtener valores indicativos de la temperatura media y radiación solar mensual:
B46: Input of parameters | C46: 2 Input | E46: Input of parameters | F46: Entrée de paramètres | G46: Entrada de parámetros
B47: Product information | E47: Product information | F47: Information du produit | G47: Información del producto
B48: Data | E48: Data | F48: Données | G48: Datos
B49: Total mass to be cooled | E49: Total mass to be cooled | F49: Masse totale à refroidir | G49: Masa total a ser refrigerada
B50: Moisture content of the product | E50: Moisture content of the product | F50: Teneur en humidité du produit | G50: Contenido de Humedad del producto
B51: or Heat capacity of the product | E51: or Heat capacity of the product | F51: ou capacité thermique du produit | G51: o Capacidad calorífica del producto
B52: Mass = | E52: Mass = | F52: Masse = | G52: Masa=
B53: MC = | E53: MC = | F53: MC = | G53: MC=
B54: cp = | E54: cp = | F54: cp = | G54: cp=
B55: kg or l | E55: kg or l | F55: kg ou l | G55: kg ó l
B56: % wet based | E56: % wet based | F56: % à base humide | G56: % base humeda
B57: kJ/kg K | E57: kJ/kg K | F57: kJ/kg K | G57: kJ/kg K
B58: Temperature information | E58: Temperature information | F58: Information des températures | G58: Información de temperatura
B59: Initial temperature of the product | E59: Initial temperature of the product | F59: Température initiale du produit | G59: Temperatura inicial del producto
B60: Final temperature of the product | E60: Final temperature of the product | F60: Température finale du produit | G60: Temperatura final del producto
B61: Time to cool down the product | E61: Time to cool down the product | F61: Temps pour refroidir le produit | G61: Tiempo para refrigerar el producto
B62: How often do you cool down the product | E62: How often do you cool down the product | F62: À quelle fréquence refroidissez-vous le produit? | G62: En que frecuencia se introduce el producto en el refrigerador?
B63: per month | E63: per month | F63: par mois | G63: al mes
B64: System information | E64: System information | F64: Informations du système | G64: Información dle sistema
B65: Batteries | E65: Batteries | F65: Batteries | G65: Baterias
B66: Autonomy of the system | E66: Autonomy of the system | F66: Autonomie du système | G66: Autonomía
B67: System losses | E67: System losses | F67: Pertes du système | G67: Perdidas del sistema
B68: Yes | E68: Yes | F68: Oui | G68: Si
B69: =INDEX(E69:H69,$C$3) -> No | E69: No | F69: Non | G69: No
B70: PV Panels | E70: PV Panels | F70: Panneau solaires
B71: Charge Controller | E71: Charge Controller | F71: Contrôleur de charge
B72: Batteries | E72: Batteries | F72: Batteries
B73: Control Unit | E73: Control Unit | F73: Unité de control
B74: Compressor | E74: Compressor | F74: Compressseur
B75: Refrigerator | E75: Refrigerator | F75: Réfrigérateur
B76: Evaporator plate | E76: Evaporator plate | F76: Plaque d'évaporateur
B77: Isolation material | E77: Isolation material | F77: Matériau d'isolation | G77: Aislamiento
B78: Length of the refrigerator | E78: Length of the refrigerator | F78: Longueur du réfrigérateur
B79: Width of the refrigerator | E79: Width of the refrigerator | F79: Largeur du réfrigérateur
B80: Height of the refrigerator | E80: Height of the refrigerator | F80: Hauteur du réfrigérateur
B81: Thermal conductivity of insulation | E81: Thermal conductivity of insulation | F81: Conductivité thermique de l'isolation | G81: Conductividad térmica
B82: Thickness of insulation | E82: Thickness of insulation | F82: Épaisseur de l'isolation | G82: Espesor del aislante
B83: Economic information | E83: Economic information | F83: Informations économiques | G83: Información económica
B84: =INDEX(E84:H84,$C$3) -> Currency used for calculation | E84: Currency used for calculation | F84: Devise utilisée pour le calcul | G84: Moneda
B85: Specific cost of PV | E85: Specific cost of PV | F85: Coût spécifique du PV | G85: Coste especifico de paneles fotovoltáicos
B86: PV lifetime | E86: PV lifetime | F86: PV durée de vie | G86: Durabilidad de los paneles fotovoltáicos
B87: Specif cost of battery | E87: Specif cost of battery | F87: Coût spécifique de la batterie | G87: Coste especifico de las baterias
B88: Battery lifetime | E88: Battery lifetime | F88: Durée de vie de la batterie | G88: Durabilidad de las baterias
B89: Cost of solar cooling unit | E89: Cost of solar cooling unit | F89: Coût de l'unité de refroidissement solaire | G89: Coste especifico de las unidades de refrigeración
B90: Solar cooling unit lifetime | E90: Solar cooling unit lifetime | F90: Durée de vie de l'unité de refroidissement solaire | G90: Durabilidad de las unidades de refrigeración
B91: Material & construction costs for cooling box | E91: Material & construction costs for cooling box | F91: Coûts de matériel et de construction pour la glacière | G91: Coste de materiales y construción del refrigerador
B92: Maintenance costs per year | E92: Maintenance costs per year | F92: Coûts de maintenance par an | G92: Coste de manteinimiento anual
B93: years | E93: years | F93: années | G93: anyos
B94: Additional income per product unit | E94: Additional income per product unit | F94: Revenu supplémentaire par unité de produit | G94: Ingresos adicionales por unidad de producto
B95: Additional income per month | E95: Additional income per month | F95: Revenu supplémentaire par mois | G95: Ingresos adicionales mensuales
B96: Discount rate | E96: Discount rate | F96: Taux de remise | G96: Tasa de descuento
B97: Inflation | E97: Inflation | F97: Inflation | G97: Inflación
B98: €/kg or l | E98: ='2 Input'!G44&"/kg or l" -> €/kg or l | F98: ='2 Input'!G44&"/kg ou l" -> €/kg ou l | G98: ='2 Input'!G44&"/kg o l" -> €/kg o l
B99: €/Wp | E99: ='2 Input'!G44&"/Wp" -> €/Wp | F99: ='2 Input'!G44&"/Wc" -> €/Wc
B100: €/month | E100: ='2 Input'!G44&"/month" -> €/month | F100: ='2 Input'!G44&"/mois" -> €/mois | G100: ='2 Input'!G44&"/mes" -> €/mes
B101: Results | C101: 3 Output | E101: Results | F101: Résultats | G101: Resultados
B102: System Design without batteries | E102: System Design without batteries | F102: Conception du système sans batteries | G102: Disenyo del sistema sin baterias
B103: Cooling units needed: | E103: Cooling units needed: | F103: Unités de refroidissement nécessaires: | G103: Unidades de refrigeración necesarias:
B104: Cooling units costs: | E104: Cooling units costs: | F104: Coûts des unités de refroidissement: | G104: Coste de las unidades de refrigeración:
B105: Solar PV size: | E105: Solar PV size: | F105: Taille PV solaire: | G105: Potencia fotovoltáica:
B106: Solar PV costs: | E106: Solar PV costs: | F106: Coûts PV solaire: | G106: Coste de los paneles solares:
B107: Battery size: | E107: Battery size: | F107: Taille des batteries: | G107: Capacidad de las baterías:
B108: Battery costs: | E108: Battery costs: | F108: Coûts des batteries: | G108: Coste de las baterias:
B109: Total initial investment: | E109: Total initial investment: | F109: Investissement initial total: | G109: Inversión total:
B110: Payback period: | E110: Payback period: | F110: Période de récupération: | G110: Periodo de Amortización:
B111: Net present value: | E111: Net present value: | F111: Valeur actuelle nette: | G111: Valor presente neto:
B112: Internal rate of return: | E112: Internal rate of return: | F112: Taux de rendement interne: | G112: Tasa interna de retorno:
B113: System Design with batteries | E113: System Design with batteries | F113: Conception du système avec batteries | G113: Disenyo del sistema con baterias
B114: years | E114: years | F114: années | G114: Anyos
B115: Accumulated income & system costs over 20 years | E115: Accumulated income & system costs over 20 years | F115: Revenu accumulé et coûts du système sur 20 ans | G115: Ingresos acumulados y coste durante 20 anyos
B116: Years | E116: Years | F116: Années | G116: Anyos
B117: Accumulated income | E117: Accumulated income | F117: Revenu accumulé | G117: Ingresos acumulados
B118: Accumulated system costs without batteries | E118: Accumulated system costs without batteries | F118: Coûts accumulé du système sans batteries | G118: Coste del sistema acumulado sin baterias
B119: Accumulated system costs with batteries | E119: Accumulated system costs with batteries | F119: Coûts accumulé du système avec batteries | G119: Coste del sistema acumulado con baterias

Sheet 4 Weather Data
B5: ="Selection: "&'1 Geographic Data'!A6 -> Selection: Mali (Bamako) | C5: ='1 Geographic Data'!B7 -> January | D5: ='1 Geographic Data'!C7 -> February | E5: ='1 Geographic Data'!D7 -> March | F5: ='1 Geographic Data'!E7 -> April | G5: ='1 Geographic Data'!F7 -> May | H5: ='1 Geographic Data'!G7 -> June | I5: ='1 Geographic Data'!H7 -> July | J5: ='1 Geographic Data'!I7 -> August | K5: ='1 Geographic Data'!J7 -> September | L5: ='1 Geographic Data'!K7 -> October | M5: ='1 Geographic Data'!L7 -> November | N5: ='1 Geographic Data'!M7 -> December
B6: ='1 Geographic Data'!A8 -> Mean daily temperature [°C]: | C6: =INDEX(C14:C51,MATCH($S$13,$B$14:$B$50,0)+1) -> 25.1 | D6: =INDEX(D14:D51,MATCH($S$13,$B$14:$B$50,0)+1) -> 27.8 | E6: 30.3 | F6: 31.1 | G6: 31.5 | H6: 29 | I6: 27.4 | J6: 25.9 | K6: 26.4 | L6: 27.4 | M6: 26.5 | N6: 24.8
B7: ='1 Geographic Data'!A9 -> Solar irradiation [kWh/m² day]: | C7: =INDEX(C14:C52,MATCH($S$13,$B$14:$B$50,0)+2) -> 5.4 | D7: =INDEX(D14:D52,MATCH($S$13,$B$14:$B$50,0)+2) -> 5.9 | E7: 6.9 | F7: 6.6 | G7: 6.4 | H7: 6.1 | I7: 5.8 | J7: 5.6 | K7: 5.8 | L7: 5.8 | M7: 5.7 | N7: 5.4
Q13: Selection: | S13: ='1 Geographic Data'!A6 -> Mali (Bamako)
B14: Kenya (Kisumu) | C14: =C5 -> January | D14: February | E14: March | F14: April | G14: May | H14: June | I14: July | J14: August | K14: September | L14: October | M14: November | N14: December | Q14: List of locations:
B15: =B6 -> Mean daily temperature [°C]: | C15: 25 | D15: 26 | E15: 26 | F15: 26 | G15: 25 | H15: 23 | I15: 22 | J15: 23 | K15: 24 | L15: 25 | M15: 25 | N15: 25 | S15: =B14 -> Kenya (Kisumu)
B16: =B7 -> Solar irradiation [kWh/m² day]: | C16: 6.2 | D16: 6.6 | E16: 6 | F16: 5.3 | G16: 4.6 | H16: 4.3 | I16: 4.4 | J16: 4.7 | K16: 5.6 | L16: 5.9 | M16: 5.6 | N16: 5.8 | S16: =B18 -> Mali (Bamako)
S17: =B22 -> Benin (Porto Novo)
B18: Mali (Bamako) | C18: =C14 -> January | D18: February | E18: March | F18: April | G18: May | H18: June | I18: July | J18: August | K18: September | L18: October | M18: November | N18: December | S18: =B26 -> +++ Add location +++
B19: =B15 -> Mean daily temperature [°C]: | C19: 25.1 | D19: 27.8 | E19: 30.3 | F19: 31.1 | G19: 31.5 | H19: 29 | I19: 27.4 | J19: 25.9 | K19: 26.4 | L19: 27.4 | M19: 26.5 | N19: 24.8 | S19: =B30 -> +++ Add location +++
B20: =B16 -> Solar irradiation [kWh/m² day]: | C20: 5.4 | D20: 5.9 | E20: 6.9 | F20: 6.6 | G20: 6.4 | H20: 6.1 | I20: 5.8 | J20: 5.6 | K20: 5.8 | L20: 5.8 | M20: 5.7 | N20: 5.4 | S20: =B34 -> +++ Add location +++
S21: =B38 -> +++ Add location +++
B22: Benin (Porto Novo) | C22: =C14 -> January | D22: February | E22: March | F22: April | G22: May | H22: June | I22: July | J22: August | K22: September | L22: October | M22: November | N22: December | S22: =B42 -> +++ Add location +++
B23: =B15 -> Mean daily temperature [°C]: | C23: 28 | D23: 29 | E23: 29.5 | F23: 29 | G23: 28 | H23: 27 | I23: 26 | J23: 26 | K23: 26.5 | L23: 27 | M23: 28 | N23: 28.5 | S23: =B46 -> +++ Add location +++
B24: =B16 -> Solar irradiation [kWh/m² day]: | C24: 5.929032258 | D24: 5.928571429 | E24: 5.709677419 | F24: 5.8 | G24: 5.083870968 | H24: 4.016666667 | I24: 4.135483871 | J24: 4.429032258 | K24: 4.406666667 | L24: 4.532258065 | M24: 5.256666667 | N24: 5.706451613 | S24: =B50 -> +++ Add location +++
B26: +++ Add location +++ | C26: =C14 -> January | D26: February | E26: March | F26: April | G26: May | H26: June | I26: July | J26: August | K26: September | L26: October | M26: November | N26: December
B27: =B15 -> Mean daily temperature [°C]:
B28: =B16 -> Solar irradiation [kWh/m² day]:
B30: +++ Add location +++ | C30: =C14 -> January | D30: February | E30: March | F30: April | G30: May | H30: June | I30: July | J30: August | K30: September | L30: October | M30: November | N30: December
B31: =B15 -> Mean daily temperature [°C]:
B32: =B16 -> Solar irradiation [kWh/m² day]:
B34: +++ Add location +++ | C34: =C14 -> January | D34: February | E34: March | F34: April | G34: May | H34: June | I34: July | J34: August | K34: September | L34: October | M34: November | N34: December
B35: =B15 -> Mean daily temperature [°C]:
B36: =B16 -> Solar irradiation [kWh/m² day]:
B38: +++ Add location +++ | C38: =C14 -> January | D38: February | E38: March | F38: April | G38: May | H38: June | I38: July | J38: August | K38: September | L38: October | M38: November | N38: December
B39: =B15 -> Mean daily temperature [°C]:
B40: =B16 -> Solar irradiation [kWh/m² day]:
B42: +++ Add location +++ | C42: =C14 -> January | D42: February | E42: March | F42: April | G42: May | H42: June | I42: July | J42: August | K42: September | L42: October | M42: November | N42: December
B43: =B15 -> Mean daily temperature [°C]:
B44: =B16 -> Solar irradiation [kWh/m² day]:
B46: +++ Add location +++ | C46: =C14 -> January | D46: February | E46: March | F46: April | G46: May | H46: June | I46: July | J46: August | K46: September | L46: October | M46: November | N46: December
B47: =B15 -> Mean daily temperature [°C]:
B48: =B16 -> Solar irradiation [kWh/m² day]:
B50: +++ Add location +++ | C50: =C14 -> January | D50: February | E50: March | F50: April | G50: May | H50: June | I50: July | J50: August | K50: September | L50: October | M50: November | N50: December
B51: =B15 -> Mean daily temperature [°C]:
B52: =B16 -> Solar irradiation [kWh/m² day]:
